bitfinex/quotes_SOLUSD_20250604
["timestamp","ask_amount","ask_price","bid_price","bid_amount"]
[1749027788498,14.32721984,156.81,156.77,14.32721984]
[1749027788684,1.14,156.8,156.77,14.32721984]
[1749027790492,1.14,156.8,156.76,18.02435415]
[1749027790493,1.14,156.8,156.79,14.32721984]
[1749027790666,1.14,156.8,156.78,14.32721984]
[1749027791493,1.14,156.8,156.77,14.32721984]
[1749027793504,1.14,156.81,156.77,14.32721984]
[1749027793678,1.14,156.81,156.78,14.32721984]
[1749027795406,1.14,156.81,156.77,14.32721984]
[1749027795706,15.46721984,156.81,156.76,18.02435415]
[1749027796008,15.46721984,156.81,156.77,14.32721984]
[1749027797111,1.14,156.81,156.77,14.32721984]
[1749027797285,1.14,156.81,156.78,14.32721984]
[1749027797487,15.46721984,156.81,156.77,14.32721984]
[1749027798318,1.14,156.8,156.77,14.32721984]
[1749027801118,14.32721984,156.79,156.76,18.02435415]
[1749027801921,14.32721984,156.77,156.76,164.02435415]
[1749027802112,14.32721984,156.77,156.72,146.0]
[1749027802417,14.32721984,156.75,156.72,146.0]
[1749027802594,14.32721984,156.74,156.72,146.0]
[1749027803595,14.32721984,156.73,156.72,146.0]
[1749027803789,14.32721984,156.73,156.69,40.46938141]
[1749027804431,15.46721984,156.74,156.69,40.46938141]
[1749027804924,15.46721984,156.74,156.7,14.32721984]
[1749027805328,15.46721984,156.74,156.72,14.32721984]
[1749027805329,1.14,156.74,156.72,14.32721984]
[1749027805528,1.14,156.74,156.73,14.32721984]
[1749027805721,1.14,156.74,156.72,14.32721984]
[1749027808630,1.14,156.74,156.72,160.32721984]
[1749027808924,1.14,156.75,156.72,160.32721984]
[1749027809621,1.14,156.75,156.72,146.0]
[1749027809924,15.46721984,156.75,156.72,146.0]
[1749027810233,14.32721984,156.74,156.72,146.0]
[1749027810534,14.32721984,156.73,156.7,18.45795497]
[1749027810950,15.46721984,156.73,156.7,18.45795497]
[1749027811564,1.14,156.73,156.7,32.78517481]
[1749027813932,1.14,156.73,156.72,14.32721984]
[1749027814829,23.48721984,156.76,156.72,14.32721984]
[1749027815037,1.14,156.74,156.72,14.32721984]
[1749027815236,1.14,156.74,156.7,32.78517481]
[1749027815748,1.14,156.74,156.71,14.32721984]
[1749027818851,1.14,156.74,156.72,14.32721984]
[1749027819667,1.14,156.75,156.72,14.32721984]
[1749027820630,1.14,156.75,156.72,160.32721984]
[1749027821034,1.14,156.75,156.73,14.32721984]
[1749027822450,1.14,156.75,156.72,146.0]
[1749027822655,1.14,156.75,156.72,160.32721984]
[1749027825362,32.9768687,156.75,156.71,14.32721984]
[1749027825560,1.14,156.74,156.71,14.32721984]
[1749027826285,1.14,156.74,156.7,18.45795497]
[1749027826488,1.14,156.74,156.72,14.32721984]
[1749027827287,1.14,156.74,156.73,14.32721984]
[1749027827461,1.14,156.76,156.73,14.32721984]
[1749027827661,1.14,156.76,156.75,14.32721984]
[1749027828257,1.14,156.78,156.75,14.32721984]
[1749027828468,1.14,156.78,156.77,14.32721984]
[1749027831855,1.14,156.8,156.77,14.32721984]
[1749027832061,1.14,156.8,156.78,14.32721984]
[1749027832259,1.14,156.8,156.79,14.32721984]
[1749027832962,1.14,156.82,156.79,14.32721984]
[1749027833810,1.14,156.82,156.78,14.32721984]
[1749027834101,34.1168687,156.82,156.77,14.32721984]
[1749027836489,14.32721984,156.81,156.77,14.32721984]
[1749027836706,1.14,156.8,156.77,14.32721984]
[1749027838303,1.14,156.8,156.77,160.32721984]
[1749027839411,1.14,156.79,156.77,160.32721984]
[1749027839597,1.14,156.79,156.78,14.32721984]
[1749027843225,1.14,156.79,156.78,160.32721984]
[1749027844723,1.14,156.79,156.78,146.0]
[1749027845102,1.14,156.79,156.77,14.32721984]
[1749027845295,9.16,156.78,156.75,172.0]
[1749027845627,1.14,156.77,156.75,14.32721984]
[1749027845999,1.14,156.77,156.76,14.32721984]
[1749027847522,1.14,156.77,156.74,146.0]
[1749027847725,1.14,156.77,156.76,14.32721984]
[1749027850831,10.3,156.77,156.76,14.32721984]
[1749027851427,10.3,156.77,156.76,14.46938141]
[1749027851606,10.3,156.77,156.76,14.32721984]
[1749027852908,10.3,156.77,156.76,160.32721984]
[1749027862618,10.3,156.77,156.76,146.0]
[1749027862936,10.3,156.77,156.76,160.32721984]
[1749027863728,10.3,156.77,156.7,164.45795497]
[1749027863935,14.32721984,156.75,156.7,18.45795497]
[1749027864247,10.3,156.74,156.71,14.32721984]
[1749027866951,10.3,156.74,156.72,14.32721984]
[1749027867243,10.3,156.74,156.73,14.32721984]
[1749027869028,10.3,156.74,156.71,14.32721984]
[1749027869249,1.14,156.73,156.71,14.32721984]
[1749027869941,1.14,156.73,156.7,32.78517481]
[1749027870975,1.14,156.73,156.71,14.32721984]
[1749027871364,1.14,156.73,156.7,18.45795497]
[1749027871675,1.14,156.73,156.7,32.78517481]
[1749027873974,9.16,156.72,156.7,32.78517481]
[1749027874173,1.14,156.71,156.7,32.78517481]
[1749027874568,1.14,156.71,156.7,18.45795497]
[1749027874758,1.14,156.71,156.7,32.78517481]
[1749027876369,1.14,156.71,156.7,18.45795497]
[1749027877648,1.14,156.71,156.69,22.57966355]
[1749027878060,1.14,156.71,156.69,8.25244371]
[1749027879582,9.16,156.7,156.69,8.25244371]
[1749027880671,9.16,156.7,156.69,22.57966355]
[1749027880981,9.16,156.7,156.67,146.0]
[1749027881160,1.14,156.69,156.67,146.0]
[1749027881360,1.14,156.69,156.68,14.32721984]
[1749027882779,1.14,156.69,156.67,146.0]
[1749027882988,1.14,156.69,156.68,14.32721984]
[1749027883481,1.14,156.69,156.67,146.0]
[1749027883783,1.14,156.69,156.67,160.32721984]
[1749027883983,1.14,156.69,156.68,14.32721984]
[1749027885386,10.3,156.69,156.68,14.32721984]
[1749027885578,10.3,156.69,156.68,160.32721984]
[1749027894200,10.3,156.69,156.68,146.0]
[1749027894776,10.3,156.69,156.68,160.32721984]
[1749027894995,10.3,156.69,156.68,14.32721984]
[1749027897799,10.3,156.69,156.67,14.32721984]
[1749027897999,1.14,156.68,156.67,14.32721984]
[1749027898199,1.14,156.68,156.64,172.14216157]
[1749027898380,1.14,156.68,156.67,14.32721984]
[1749027898576,1.14,156.68,156.64,172.14216157]
[1749027898995,15.46721984,156.68,156.64,160.32721984]
[1749027899197,15.46721984,156.68,156.64,146.0]
[1749027899405,14.32721984,156.67,156.64,146.0]
[1749027899594,14.32721984,156.65,156.61,14.32721984]
[1749027899902,1.14,156.64,156.62,14.32721984]
[1749027900097,9.18,156.63,156.62,14.32721984]
[1749027900293,9.18,156.63,156.58,0.14216157]
[1749027900501,1.14,156.62,156.59,14.32721984]
[1749027900702,1.14,156.62,156.6,14.32721984]
[1749027901199,1.14,156.62,156.59,40.32721984]
[1749027901800,1.14,156.62,156.59,14.32721984]
[1749027902006,1.14,156.62,156.59,40.32721984]
[1749027902407,1.14,156.62,156.59,26.0]
[1749027902610,1.14,156.62,156.6,14.32721984]
[1749027903391,1.14,156.62,156.59,26.0]
[1749027903713,1.14,156.62,156.61,14.32721984]
[1749027905884,1.14,156.62,156.61,14.46938141]
[1749027906079,10.32,156.62,156.61,40.75370455]
[1749027906419,1.5141,156.72,156.63,26.0]
[1749027906420,15.84131984,156.72,156.63,26.0]
[1749027906589,10.32,156.71,156.68,14.32721984]
[1749027907404,30.0,156.69,156.68,14.32721984]
[1749027907583,31.14,156.69,156.68,14.32721984]
[1749027908293,1.14,156.69,156.68,14.32721984]
[1749027908824,1.14,156.69,156.64,160.75370455]
[1749027909026,9.18,156.68,156.64,160.75370455]
[1749027909209,1.14,156.67,156.64,160.75370455]
[1749027910121,1.14,156.67,156.64,146.42648471]
[1749027910310,1.14,156.67,156.66,14.32721984]
[1749027912098,1.14,156.67,156.66,160.32721984]
[1749027916035,10.32,156.67,156.66,160.32721984]
[1749027918612,10.32,156.67,156.66,160.46938141]
[1749027922046,10.32,156.67,156.66,160.32721984]
[1749027926642,10.32,156.67,156.66,146.0]
[1749027926847,10.32,156.67,156.66,160.32721984]
[1749027931848,10.32,156.67,156.66,160.46938141]
[1749027933964,10.32,156.67,156.66,186.75370455]
[1749027934630,6.04,156.67,156.66,160.75370455]
[1749027934837,2.28,156.67,156.66,160.75370455]
[1749027935128,1.6599,156.76,156.7,0.14216157]
[1749027935329,10.32,156.75,156.73,14.32721984]
[1749027940241,10.32,156.75,156.73,160.32721984]
[1749027940649,14.32721984,156.74,156.73,146.0]
[1749027941348,24.64721984,156.75,156.73,146.0]
[1749027942353,1.14,156.74,156.73,146.0]
[1749027944640,1.14,156.74,156.71,14.32721984]
[1749027947355,9.16,156.73,156.71,14.32721984]
[1749027947553,1.14,156.72,156.71,14.32721984]
[1749027950667,1.14,156.72,156.71,160.32721984]
[1749027951050,1.14,156.72,156.71,146.0]
[1749027952668,10.3,156.72,156.71,146.0]
[1749027953967,24.62721984,156.72,156.71,146.0]
[1749027956064,10.3,156.72,156.71,146.0]
[1749027956457,10.3,156.72,156.69,10.53908285]
[1749027956661,10.3,156.72,156.69,156.53908285]
[1749027957663,1.14,156.71,156.69,156.53908285]
[1749027960266,15.46721984,156.71,156.69,156.53908285]
[1749027961571,15.90311984,156.7,156.69,146.0]
[1749027961751,15.90311984,156.7,156.65,146.0]
[1749027962082,14.32721984,156.67,156.65,146.0]
[1749027962375,10.3,156.66,156.65,146.0]
[1749027962587,10.3,156.66,156.65,160.32721984]
[1749027963291,10.3,156.66,156.65,146.0]
[1749027963465,10.3,156.66,156.65,160.32721984]
[1749027964575,10.3,156.66,156.65,146.0]
[1749027965079,10.3,156.66,156.63,20.0402611]
[1749027965257,24.62721984,156.66,156.63,20.0402611]
[1749027966369,14.32721984,156.65,156.63,20.0402611]
[1749027966576,1.14,156.64,156.63,20.0402611]
[1749027966761,15.46721984,156.64,156.63,20.0402611]
[1749027967884,15.46721984,156.64,156.59,160.32721984]
[1749027968090,23.50721984,156.63,156.59,160.32721984]
[1749027968262,1.14,156.62,156.59,160.32721984]
[1749027969689,1.14,156.62,156.6,14.32721984]
[1749027971067,1.14,156.62,156.61,14.32721984]
[1749027971265,1.14,156.62,156.61,160.32721984]
[1749027972295,10.32,156.62,156.61,160.32721984]
[1749027976320,10.32,156.62,156.61,146.0]
[1749027977170,10.32,156.62,156.59,14.32721984]
[1749027977379,1.14,156.61,156.59,14.32721984]
[1749027980005,1.14,156.61,156.58,47.34981491]
[1749027980202,1.14,156.61,156.59,14.32721984]
[1749027982002,9.18,156.6,156.59,14.32721984]
[1749027986111,9.18,156.6,156.59,160.32721984]
[1749027986708,10.32,156.6,156.59,160.32721984]
[1749027992703,10.32,156.6,156.59,160.46938141]
[1749027993017,10.32,156.6,156.59,160.75370455]
[1749027994821,15.88271984,156.69,156.59,160.75370455]
[1749027994822,1.5555,156.69,156.6,0.14216157]
[1749027995000,10.32,156.68,156.65,0.14216157]
[1749027995206,10.32,156.68,156.67,14.32721984]
[1749027996124,10.32,156.68,156.67,14.75370455]
[1749027998828,26.0,156.77,156.68,0.42648471]
[1749027999126,10.32,156.76,156.72,14.32721984]
[1749027999323,10.32,156.76,156.68,146.14216157]
[1749027999535,14.32721984,156.75,156.7,14.32721984]
[1749027999833,1.14,156.74,156.7,14.32721984]
[1749028000001,9.18,156.73,156.7,14.32721984]
[1749028000199,1.14,156.72,156.7,14.32721984]
[1749028001530,1.14,156.72,156.71,14.32721984]
[1749028003531,1.14,156.72,156.71,175.08092439]
[1749028006544,10.32,156.72,156.71,175.08092439]
[1749028007647,1.5776,156.81,156.72,0.42648471]
[1749028007846,10.3,156.8,156.78,14.32721984]
[1749028009867,10.3,156.8,156.79,14.32721984]
[1749028010055,10.3,156.8,156.79,14.46938141]
[1749028011769,10.3,156.8,156.79,160.75370455]
[1749028013265,1.5609,156.89,156.82,26.0]
[1749028013464,10.3,156.88,156.87,14.32721984]
[1749028013856,10.3,156.88,156.86,14.32721984]
[1749028014172,10.3,156.88,156.85,14.32721984]
[1749028016574,10.3,156.88,156.86,14.32721984]
[1749028017173,10.3,156.88,156.85,14.32721984]
[1749028019758,24.62721984,156.88,156.83,146.0]
[1749028019963,24.62721984,156.88,156.83,14.32721984]
[1749028020160,24.62721984,156.88,156.84,14.32721984]
[1749028020774,24.62721984,156.88,156.81,26.14216157]
[1749028020962,24.62721984,156.88,156.84,14.32721984]
[1749028021176,14.32721984,156.87,156.83,14.32721984]
[1749028021491,1.14,156.86,156.83,14.32721984]
[1749028021665,9.16,156.85,156.83,14.32721984]
[1749028021866,1.14,156.84,156.81,186.32721984]
[1749028022075,1.14,156.84,156.79,172.14216157]
[1749028022285,14.32721984,156.82,156.78,38.39270402]
[1749028022585,24.62721984,156.81,156.78,24.06548418]
[1749028022774,14.32721984,156.8,156.76,14.32721984]
[1749028022961,1.14,156.79,156.77,14.32721984]
[1749028023156,9.16,156.78,156.77,14.32721984]
[1749028024960,9.16,156.78,156.77,14.46938141]
[1749028025189,1.14,156.79,156.78,0.42648471]
[1749028025360,10.3,156.79,156.78,55.08092439]
[1749028025691,10.3,156.79,156.78,40.75370455]
[1749028027477,10.3,156.79,156.78,40.46938141]
[1749028028487,10.3,156.79,156.78,40.75370455]
[1749028029993,10.3,156.79,156.78,14.75370455]
[1749028030177,10.3,156.79,156.78,40.75370455]
[1749028030694,10.3,156.79,156.78,14.75370455]
[1749028031891,10.3,156.79,156.78,40.75370455]
[1749028032098,10.3,156.79,156.78,14.32721984]
[1749028032599,10.3,156.79,156.78,40.32721984]
[1749028034672,10.3,156.79,156.78,26.0]
[1749028038038,10.3,156.79,156.76,184.77122165]
[1749028038205,1.14,156.78,156.76,184.77122165]
[1749028038609,15.46721984,156.78,156.76,24.30184024]
[1749028038828,14.32721984,156.77,156.73,146.0]
[1749028039038,24.62721984,156.76,156.73,146.0]
[1749028039335,10.3,156.75,156.71,197.61928263]
[1749028039508,24.62721984,156.75,156.71,197.61928263]
[1749028039938,10.3,156.75,156.72,0.14216157]
[1749028040739,10.3,156.75,156.73,14.32721984]
[1749028042427,10.3,156.75,156.73,160.32721984]
[1749028042836,10.3,156.75,156.74,14.32721984]
[1749028044221,10.3,156.75,156.74,186.46938141]
[1749028045434,10.3,156.75,156.74,172.14216157]
[1749028045641,10.3,156.75,156.74,186.46938141]
[1749028048052,10.3,156.75,156.74,160.32721984]
[1749028048254,10.3,156.75,156.73,14.32721984]
[1749028048458,1.14,156.74,156.73,14.32721984]
[1749028049851,1.14,156.74,156.73,160.32721984]
[1749028052459,10.3,156.74,156.73,160.32721984]
[1749028056560,10.3,156.74,156.73,146.0]
[1749028057062,10.3,156.74,156.71,25.47712106]
[1749028057263,1.14,156.73,156.71,25.47712106]
[1749028058446,1.14,156.73,156.72,14.32721984]
[1749028058952,1.14,156.73,156.71,25.47712106]
[1749028059575,9.16,156.74,156.71,25.47712106]
[1749028059576,9.14000001,156.74,156.72,14.46938141]
[1749028059776,1.14,156.73,156.72,14.46938141]
[1749028059974,1.14,156.73,156.72,28.79660125]
[1749028060345,1.14,156.73,156.72,14.46938141]
[1749028062251,1.14,156.73,156.72,40.46938141]
[1749028063580,1.14,156.73,156.72,40.75370455]
[1749028064076,1.14,156.73,156.72,40.46938141]
[1749028065660,1.14,156.73,156.72,186.32721984]
[1749028065855,1.14,156.73,156.71,25.47712106]
[1749028066059,15.46721984,156.73,156.7,146.0]
[1749028066358,14.32721984,156.72,156.67,14.32721984]
[1749028066565,10.3,156.71,156.67,186.32721984]
[1749028066881,10.3,156.71,156.67,172.0]
[1749028067062,10.3,156.71,156.67,186.32721984]
[1749028068178,10.3,156.71,156.68,14.32721984]
[1749028070078,1.14,156.7,156.68,14.32721984]
[1749028070688,1.14,156.7,156.67,186.32721984]
[1749028070889,1.14,156.7,156.66,0.14216157]
[1749028070890,15.46721984,156.7,156.66,160.32721984]
[1749028071556,15.46721984,156.7,156.66,14.32721984]
[1749028072961,1.14,156.7,156.66,14.32721984]
[1749028073685,1.14,156.7,156.67,14.32721984]
[1749028074884,9.16,156.69,156.67,13.75721984]
[1749028075183,1.14,156.68,156.67,13.75721984]
[1749028076068,1.14,156.68,156.65,26.0]
[1749028076282,1.14,156.68,156.65,40.32721984]
[1749028078293,1.14,156.68,156.65,40.32721984]
[1749028078900,1.14,156.68,156.67,14.46938141]
[1749028080399,10.32,156.68,156.67,14.46938141]
[1749028083696,10.32,156.68,156.67,160.46938141]
[1749028091116,10.32,156.68,156.67,160.46938141]
[1749028093319,10.32,156.68,156.67,146.14216157]
[1749028093518,10.32,156.68,156.67,160.46938141]
[1749028112425,10.32,156.68,156.67,186.46938141]
[1749028113236,10.32,156.68,156.67,40.32721984]
[1749028113447,10.32,156.68,156.67,26.0]
[1749028114448,10.32,156.68,156.67,40.32721984]
[1749028115535,10.32,156.68,156.65,183.7707815]
[1749028115837,1.14,156.67,156.65,224.09800134]
[1749028116219,1.14,156.67,156.65,209.7707815]
[1749028117231,1.14,156.67,156.65,37.7707815]
[1749028117444,15.46721984,156.67,156.65,37.7707815]
[1749028118114,1.14,156.67,156.65,37.7707815]
[1749028119142,9.18,156.66,156.65,37.7707815]
[1749028120143,9.18,156.66,156.63,14.32721984]
[1749028120341,1.14,156.65,156.63,160.32721984]
[1749028121569,1.14,156.65,156.63,146.0]
[1749028122725,1.14,156.65,156.61,14.32721984]
[1749028122930,15.46721984,156.65,156.61,14.32721984]
[1749028123652,15.46721984,156.65,156.6,146.14216157]
[1749028123859,15.46721984,156.65,156.61,14.32721984]
[1749028124038,15.46721984,156.65,156.6,14.32721984]
[1749028124214,15.46721984,156.65,156.59,11.43422694]
[1749028124215,15.46721984,156.65,156.59,0.14216157]
[1749028124424,14.32721984,156.63,156.58,146.0]
[1749028124622,10.32,156.62,156.59,14.32721984]
[1749028124854,10.32,156.62,156.58,160.32721984]
[1749028125340,10.32,156.62,156.59,14.32721984]
[1749028128058,1.14,156.61,156.59,14.32721984]
[1749028129750,1.14,156.61,156.59,160.32721984]
[1749028130149,1.14,156.61,156.57,0.14216157]
[1749028130150,1.14,156.61,156.58,14.32721984]
[1749028130368,1.14,156.61,156.57,160.32721984]
[1749028130369,15.46721984,156.61,156.57,160.32721984]
[1749028130571,15.46721984,156.61,156.57,146.0]
[1749028130770,14.32721984,156.6,156.56,40.32721984]
[1749028130942,10.32,156.59,156.56,40.32721984]
[1749028131459,10.32,156.59,156.57,14.32721984]
[1749028134762,10.32,156.59,156.58,14.32721984]
[1749028135368,10.32,156.59,156.58,14.46938141]
[1749028135575,10.32,156.59,156.58,0.42648471]
[1749028135935,10.32,156.59,156.57,146.0]
[1749028136132,10.32,156.59,156.57,172.0]
[1749028136867,10.32,156.59,156.58,0.42648471]
[1749028138566,10.32,156.59,156.58,0.14216157]
[1749028139965,10.32,156.59,156.58,146.14216157]
[1749028140771,10.32,156.59,156.58,146.42648471]
[1749028142381,15.92911984,156.67,156.63,14.32721984]
[1749028142549,10.32,156.66,156.62,14.32721984]
[1749028142978,10.32,156.66,156.63,14.32721984]
[1749028145571,10.32,156.66,156.62,14.46938141]
[1749028145773,10.32,156.66,156.62,14.32721984]
[1749028146660,10.32,156.66,156.58,0.28432314]
[1749028146847,10.32,156.66,156.61,14.32721984]
[1749028146848,14.32721984,156.65,156.61,14.32721984]
[1749028147048,1.14,156.64,156.61,14.32721984]
[1749028147246,9.18,156.63,156.61,14.32721984]
[1749028147453,1.14,156.62,156.61,14.32721984]
[1749028151883,1.14,156.62,156.61,160.32721984]
[1749028152056,1.14,156.62,156.61,146.0]
[1749028153461,1.14,156.62,156.6,160.32721984]
[1749028153659,1.14,156.62,156.6,146.0]
[1749028153862,9.18,156.61,156.6,146.0]
[1749028154659,9.18,156.61,156.57,51.07876736]
[1749028154963,1.14,156.6,156.57,171.07876736]
[1749028155168,15.46721984,156.6,156.57,156.75154752]
[1749028155954,1.14,156.6,156.57,171.07876736]
[1749028159500,9.18,156.59,156.57,171.07876736]
[1749028159703,1.14,156.58,156.57,171.07876736]
[1749028163178,1.14,156.58,156.57,156.75154752]
[1749028164168,1.14,156.58,156.57,146.0]
[1749028164897,10.32,156.58,156.57,146.0]
[1749028165096,10.32,156.58,156.55,14.32721984]
[1749028165393,10.32,156.58,156.54,26.0]
[1749028165600,10.32,156.58,156.55,14.32721984]
[1749028166600,10.32,156.58,156.54,26.0]
[1749028166601,10.32,156.58,156.56,14.32721984]
[1749028169493,10.32,156.58,156.56,160.32721984]
[1749028169693,14.32721984,156.61,156.56,160.32721984]
[1749028171337,14.32721984,156.6,156.56,160.32721984]
[1749028172125,14.32721984,156.61,156.56,160.32721984]
[1749028175320,14.32721984,156.6,156.56,160.32721984]
[1749028176343,14.32721984,156.6,156.56,146.0]
[1749028176523,14.32721984,156.6,156.56,160.32721984]
[1749028178441,14.32721984,156.6,156.56,146.0]
[1749028180122,14.32721984,156.59,156.56,146.0]
[1749028180650,14.32721984,156.6,156.56,146.0]
[1749028180856,14.32721984,156.6,156.56,160.32721984]
[1749028181147,14.32721984,156.61,156.57,14.32721984]
[1749028181317,9.17612629,156.61,156.57,155.17612629]
[1749028181952,9.17612629,156.61,156.57,146.0]
[1749028182656,1.6606,156.62,156.57,146.0]
[1749028182959,9.17612629,156.61,156.57,146.0]
[1749028183264,14.33783746,156.61,156.57,146.0]
[1749028183964,1.6606,156.62,156.58,14.33783746]
[1749028184121,14.33783746,156.63,156.58,14.33783746]
[1749028186349,14.33783746,156.62,156.58,14.33783746]
[1749028188551,1.5166,156.65,156.6,14.33783746]
[1749028188767,8.0441,156.69,156.62,14.33783746]
[1749028188941,14.33783746,156.67,156.63,14.33783746]
[1749028190549,14.33783746,156.66,156.62,40.33783746]
[1749028190733,14.33783746,156.66,156.62,26.0]
[1749028190937,14.33783746,156.65,156.62,26.0]
[1749028191253,14.33783746,156.65,156.62,172.0]
[1749028191554,14.33783746,156.66,156.62,186.33783746]
[1749028192650,14.33783746,156.65,156.62,146.0]
[1749028193035,8.0441,156.69,156.62,146.0]
[1749028193036,14.33783746,156.64,156.62,146.0]
[1749028194049,14.33783746,156.63,156.62,146.0]
[1749028194853,14.33783746,156.63,156.59,146.0]
[1749028195049,14.33783746,156.62,156.59,146.0]
[1749028197245,14.33783746,156.61,156.59,146.0]
[1749028197547,14.33783746,156.6,156.58,172.0]
[1749028197939,14.33783746,156.6,156.58,146.0]
[1749028200950,14.33783746,156.62,156.58,160.33783746]
[1749028201148,32.98748632,156.63,156.59,14.33783746]
[1749028201349,14.33783746,156.62,156.58,160.33783746]
[1749028201655,14.33783746,156.62,156.56,26.0]
[1749028201656,15.90593746,156.64,156.6,14.33783746]
[1749028202163,14.33783746,156.65,156.61,14.33783746]
[1749028202531,14.33783746,156.65,156.6,14.33783746]
[1749028203176,14.33783746,156.64,156.59,14.33783746]
[1749028205347,14.33783746,156.64,156.6,14.33783746]
[1749028207957,14.33783746,156.64,156.6,160.33783746]
[1749028208461,14.33783746,156.64,156.6,146.0]
[1749028208657,18.64964886,156.67,156.6,146.0]
[1749028208884,14.33783746,156.63,156.6,146.0]
[1749028212076,14.33783746,156.62,156.6,146.0]
[1749028213906,14.33783746,156.62,156.57,40.33783746]
[1749028214081,14.33783746,156.62,156.57,186.33783746]
[1749028215005,21.97407286,156.67,156.58,14.33783746]
[1749028215197,14.33783746,156.63,156.59,14.33783746]
[1749028215402,14.33783746,156.63,156.59,160.33783746]
[1749028216282,14.33783746,156.63,156.59,146.0]
[1749028219706,14.33783746,156.63,156.59,160.33783746]
[1749028221220,14.33783746,156.6,156.52,0.14216157]
[1749028221409,14.33783746,156.57,156.51,14.33783746]
[1749028221610,1.5968,156.62,156.57,26.0]
[1749028221919,18.64964886,156.61,156.55,26.0]
[1749028222113,14.33783746,156.57,156.53,26.0]
[1749028224214,14.33783746,156.56,156.53,26.0]
[1749028224614,14.33783746,156.57,156.53,26.0]
[1749028225386,14.33783746,156.58,156.54,14.47999903]
[1749028225582,14.33783746,156.59,156.54,14.47999903]
[1749028225810,14.33783746,156.59,156.55,40.33783746]
[1749028226888,14.33783746,156.59,156.55,26.0]
[1749028228021,14.33783746,156.58,156.55,26.0]
[1749028230714,12.24,156.57,156.55,26.0]
[1749028230888,12.24,156.56,156.55,26.0]
[1749028231719,12.24,156.56,156.55,172.0]
[1749028233601,13.76,156.56,156.55,172.0]
[1749028238603,13.76,156.56,156.55,146.0]
[1749028245437,14.33783746,156.57,156.55,146.0]
[1749028247427,14.33783746,156.56,156.55,146.0]
[1749028248749,14.33783746,156.56,156.53,26.0]
[1749028248909,14.33783746,156.54,156.53,146.0]
[1749028249343,14.33783746,156.54,156.51,51.94533593]
[1749028251049,1.6389,156.57,156.51,51.94533593]
[1749028251050,14.33783746,156.53,156.51,51.94533593]
[1749028251267,14.33783746,156.52,156.51,51.94533593]
[1749028251553,14.33783746,156.52,156.49,172.0]
[1749028251757,14.33783746,156.51,156.47,0.14216157]
[1749028251964,14.33783746,156.5,156.46,14.33783746]
[1749028252143,14.33783746,156.5,156.49,26.0]
[1749028252344,14.33783746,156.51,156.49,26.0]
[1749028252961,14.33783746,156.5,156.49,26.0]
[1749028255953,14.33783746,156.51,156.49,26.0]
[1749028260375,14.33783746,156.5,156.46,14.33783746]
[1749028260584,14.33783746,156.51,156.46,14.33783746]
[1749028260947,18.64964886,156.54,156.47,14.33783746]
[1749028261152,14.33783746,156.51,156.47,160.33783746]
[1749028262777,14.33783746,156.51,156.47,146.0]
[1749028263153,9.18774638,156.51,156.47,146.0]
[1749028267461,6.033,156.55,156.48,9.18774638]
[1749028267665,9.18774638,156.52,156.48,146.0]
[1749028270782,9.18774638,156.52,156.48,155.18774638]
[1749028273061,9.18774638,156.52,156.48,9.18774638]
[1749028273257,9.18774638,156.52,156.45,33.80176157]
[1749028273566,26.0,156.58,156.45,33.80176157]
[1749028273567,6.1588,156.59,156.52,0.14216157]
[1749028273770,9.18774638,156.59,156.55,9.18774638]
[1749028273975,1.5066,156.61,156.55,9.18774638]
[1749028274186,9.18774638,156.59,156.55,9.18774638]
[1749028274484,9.18774638,156.59,156.54,9.18774638]
[1749028275188,14.341046,156.59,156.55,14.341046]